bitfinex-derivatives/quotes_ETHF0:USTF0_20241207
["timestamp","ask_amount","ask_price","bid_price","bid_amount"]
[1733602508098,3.50015561,4015.2,4015.1,0.89383274]
[1733602508297,3.50015561,4015.2,4015.1,1.06800274]
[1733602508497,3.32598561,4015.2,4015.1,1.06800274]
[1733602509301,0.3952,4015.2,4015.1,1.06800274]
[1733602509994,0.56937,4015.2,4015.1,1.06800274]
[1733602510200,3.32598561,4015.2,4015.1,1.06800274]
[1733602510397,3.50015561,4015.2,4015.1,1.06800274]
[1733602510595,0.3952,4015.2,4015.1,1.06800274]
[1733602511506,3.2078,4015.4,4015.3,0.17416]
[1733602512003,3.38196,4015.4,4015.3,0.17416]
[1733602512207,3.2078,4015.4,4015.3,0.17416]
[1733602513401,3.38196,4015.4,4015.2,0.8036]
[1733602513606,3.38196,4015.4,4015.2,0.97776]
[1733602514400,3.38196,4015.4,4015.2,0.8036]
[1733602514599,3.38196,4015.4,4015.3,0.17416]
[1733602514906,3.2078,4015.4,4015.3,0.17416]
[1733602515901,3.2078,4015.4,4015.3,0.83416]
[1733602516302,3.38196,4015.4,4015.3,0.83416]
[1733602516506,3.38196,4015.4,4015.3,0.66]
[1733602517204,6.31274561,4015.4,4015.3,0.66]
[1733602517401,6.31274561,4015.4,4015.3,0.83416]
[1733602517607,6.31274561,4015.4,4015.3,0.66]
[1733602517911,3.38196,4015.4,4015.3,0.66]
[1733602519202,7.29492373,4015.4,4015.3,0.66]
[1733602520112,7.12076373,4015.4,4015.2,0.4107]
[1733602520306,0.17416,4015.3,4015.2,0.4107]
[1733602521013,0.17416,4015.3,4015.0,1.55383274]
[1733602521014,0.17417,4015.1,4015.0,0.89383274]
[1733602521816,3.10969534,4015.1,4015.0,1.06801274]
[1733602523313,3.10969534,4015.1,4015.0,0.89383274]
[1733602523810,3.10969534,4015.1,4015.0,1.06801274]
[1733602524416,0.17417,4015.1,4015.0,1.06801274]
[1733602524614,0.17417,4015.1,4015.0,0.89383274]
[1733602525714,5.0628274,4015.1,4015.0,1.06801274]
[1733602526018,5.0628274,4015.1,4015.0,0.89383274]
[1733602526218,5.0628274,4015.1,4015.0,1.06801274]
[1733602526521,5.0628274,4015.1,4015.0,0.89383274]
[1733602526913,5.0628274,4015.1,4015.0,1.06801274]
[1733602527116,5.0628274,4015.1,4015.0,0.89383274]
[1733602527516,4.8886574,4015.1,4014.8,0.4158]
[1733602527814,0.17418,4014.9,4014.8,0.58998]
[1733602528613,0.17418,4014.9,4014.8,0.4158]
[1733602529114,0.17418,4014.9,4014.8,0.58998]
[1733602529911,0.17418,4014.9,4014.8,0.4158]
[1733602530421,3.38198,4014.9,4014.8,0.4158]
[1733602530918,8.2706374,4014.9,4014.8,0.4158]
[1733602532210,8.2706374,4014.9,4014.8,0.58998]
[1733602532611,3.38198,4014.9,4014.8,0.58998]
[1733602532815,3.38198,4014.9,4014.8,0.4158]
[1733602533014,6.3190632,4014.9,4014.8,0.4158]
[1733602533409,3.38198,4014.9,4014.8,0.4158]
[1733602533614,6.31911545,4014.9,4014.8,0.4158]
[1733602534015,3.38198,4014.9,4014.8,0.4158]
[1733602534418,0.17418,4014.8,4014.7,4.80907981]
[1733602534717,3.11135507,4014.8,4014.7,4.80907981]
[1733602535517,3.11135507,4014.8,4014.7,0.89383274]
[1733602535921,3.11135507,4014.8,4014.7,4.80907981]
[1733602536112,3.11135507,4014.8,4014.7,4.98326981]
[1733602536312,3.11135507,4014.8,4014.7,4.80907981]
[1733602536516,3.11135507,4014.8,4014.7,4.98326981]
[1733602536713,3.11135507,4014.8,4014.7,4.80907981]
[1733602537622,3.11135507,4014.8,4014.7,0.89383274]
[1733602539110,0.17418,4014.8,4014.7,0.89383274]
[1733602540024,3.11007478,4014.8,4014.7,0.89383274]
[1733602540728,0.17418,4014.8,4014.7,0.89383274]
[1733602544615,5.0628374,4014.8,4014.7,0.89383274]
[1733602545522,0.17418,4014.8,4014.7,1.06802274]
[1733602545923,0.17418,4014.8,4014.7,0.89383274]
[1733602546627,8.2706374,4014.9,4014.8,0.17418]
[1733602546921,3.38198,4014.9,4014.8,0.17418]
[1733602547731,3.38198,4014.9,4014.8,4.08942707]
[1733602549230,3.38198,4014.9,4014.8,3.91524707]
[1733602549725,3.38198,4014.9,4014.8,4.08942707]
[1733602550329,3.38198,4014.9,4014.8,3.91524707]
[1733602551232,3.38198,4014.9,4014.8,4.08942707]
[1733602551633,6.31803874,4014.9,4014.8,4.08942707]
[1733602551926,6.31803874,4014.9,4014.8,3.91524707]
[1733602552131,3.38198,4014.9,4014.8,4.08942707]
[1733602553229,3.38198,4014.9,4014.8,4.74942707]
[1733602553424,6.31803874,4014.9,4014.8,4.57524707]
[1733602553630,6.31803874,4014.9,4014.8,4.74942707]
[1733602554835,6.31803874,4014.9,4014.8,0.83418]
[1733602557033,3.38198,4014.9,4014.8,0.83418]
[1733602557227,0.17419,4014.7,4014.6,4.29284707]
[1733602557441,3.11143969,4014.7,4014.6,4.29284707]
[1733602558236,0.17419,4014.6,4014.5,3.91524707]
[1733602558439,3.89146991,4014.6,4014.5,3.91524707]
[1733602559235,3.71727991,4014.6,4014.4,3.91524707]
[1733602559445,0.7799,4014.6,4014.3,3.91524707]
[1733602559734,3.11184535,4014.4,4014.3,3.91524707]
[1733602559938,0.1742,4014.4,4014.3,3.91524707]
[1733602560236,2.93764535,4014.5,4014.4,0.1742]
[1733602560433,3.34044535,4014.6,4014.4,4.33647821]
[1733602560641,3.51464535,4014.6,4014.5,5.38229132]
[1733602560839,0.577,4014.6,4014.5,11.67612477]
[1733602561033,2.93764535,4014.7,4014.5,11.50192477]
[1733602561235,2.93764535,4014.7,4014.6,4.49169104]
[1733602561737,3.11183535,4014.7,4014.6,4.31750104]
[1733602561938,3.11183535,4014.7,4014.6,4.49169104]
[1733602563046,5.0628474,4014.8,4014.7,0.17419]
[1733602563636,0.17419,4014.8,4014.7,0.17419]
[1733602563843,0.17419,4014.6,4014.5,1.29283274]
[1733602564336,5.07137196,4014.6,4014.5,1.29283274]
[1733602565142,0.17419,4014.6,4014.5,1.29283274]
[1733602565334,5.07137196,4014.6,4014.5,1.29283274]
[1733602566651,5.07137196,4014.6,4014.5,1.46703274]
[1733602569746,4.89718196,4014.6,4014.5,1.46703274]
[1733602570147,5.07137196,4014.7,4014.6,0.17419]
[1733602570342,4.89718196,4014.7,4014.6,0.17419]
[1733602570650,8.51788196,4014.9,4014.8,0.17418]
[1733602570841,6.55891323,4014.9,4014.8,5.40416661]
[1733602571044,6.55891323,4014.9,4014.8,6.06416661]
[1733602571351,6.14601323,4014.9,4014.8,6.47286661]
[1733602571537,6.14601323,4014.9,4014.8,6.79446661]
[1733602571742,3.2078,4014.9,4014.8,6.79446661]
[1733602572042,2.93821323,4015.0,4014.8,6.79446661]
[1733602572043,2.93821323,4015.2,4014.8,14.45681059]
[1733602572243,2.93821323,4015.2,4015.1,1.06800274]
[1733602572447,2.93821323,4015.3,4015.1,5.22998661]
[1733602572643,2.93821323,4015.3,4015.2,4.50768711]
[1733602572844,2.93821323,4015.3,4015.2,4.82928711]
[1733602573148,6.14601323,4015.4,4015.3,0.17416]
[1733602573445,3.2078,4015.4,4015.3,0.17416]
[1733602573639,3.2078,4015.4,4015.3,4.50552955]
[1733602574142,3.2078,4015.4,4015.3,10.37309314]
[1733602574350,3.2078,4015.4,4015.3,4.50476345]
[1733602575149,3.2078,4015.4,4015.3,4.92086345]
[1733602576349,3.2078,4015.4,4015.3,4.49638664]
[1733602576652,3.2078,4015.4,4015.3,0.59026]
[1733602577156,2.93821323,4015.7,4015.3,4.74392522]
[1733602577353,0.4068,4015.8,4015.7,0.17415]
[1733602577744,0.4068,4015.8,4015.7,0.55245]
[1733602579360,4.31806434,4015.8,4015.7,0.55245]
[1733602580855,4.31806434,4015.8,4015.7,0.3783]
[1733602581052,4.31806434,4015.8,4015.7,0.55245]
[1733602581360,4.31806434,4015.8,4015.7,0.17415]
[1733602582359,0.4068,4015.8,4015.7,0.17415]
[1733602582552,4.49220434,4015.8,4015.6,0.83315]
[1733602583063,4.49220434,4015.8,4015.7,0.17415]
[1733602583363,0.58094,4015.8,4015.7,0.17415]
[1733602586160,0.4068,4015.8,4015.7,0.17415]
[1733602586362,3.2078,4015.9,4015.8,0.17414]
[1733602586668,3.2078,4015.9,4015.8,1.06797274]
[1733602588060,2.93117631,4016.5,4015.8,1.06797274]
[1733602588061,3.2078,4016.5,4016.4,0.17411]
[1733602588260,3.2078,4016.5,4016.4,1.06794274]
[1733602588761,3.2078,4016.5,4016.4,0.89383274]
[1733602589164,3.38191,4016.5,4016.4,0.89383274]
[1733602589861,0.17411,4016.4,4016.3,0.659]
[1733602595071,3.2078,4016.5,4016.0,0.89383274]
[1733602595365,3.2078,4016.5,4015.9,0.3957]
[1733602595366,0.17412,4016.3,4016.2,0.17412]
[1733602596263,0.17412,4016.3,4016.2,0.56372]
[1733602597076,3.2078,4016.5,4016.2,1.28343274]
[1733602597376,3.2078,4016.5,4016.4,0.17411]
[1733602597974,0.17412,4016.4,4016.3,0.17411]
[1733602599971,0.17412,4016.3,4016.2,1.45755274]
[1733602601971,0.17412,4016.3,4016.2,1.28343274]
[1733602602172,0.17412,4016.3,4016.2,1.45755274]
[1733602604683,0.17412,4016.3,4016.2,1.28343274]
[1733602605274,0.17412,4016.3,4016.2,1.45755274]
[1733602606774,3.2078,4016.5,4016.2,1.28343274]
[1733602606973,3.38191,4016.5,4016.4,0.17411]
[1733602607174,3.38191,4016.5,4016.2,1.28343274]
[1733602607175,0.56131,4016.6,4016.5,0.17411]
[1733602607479,0.3872,4016.6,4016.5,1.06794274]
[1733602607977,0.56131,4016.6,4016.5,1.06794274]
[1733602608175,0.56131,4016.6,4016.5,0.89383274]
[1733602608480,0.3872,4016.6,4016.5,1.06794274]
[1733602612076,0.3872,4016.6,4016.5,1.72694274]
[1733602612880,0.3872,4016.6,4016.5,1.55283274]
[1733602612881,0.56131,4016.6,4016.5,1.55283274]
[1733602613485,0.56131,4016.6,4016.5,1.96253274]
[1733602613982,0.56131,4016.6,4016.5,2.13664274]
[1733602614379,0.56131,4016.6,4016.5,1.96253274]
[1733602614882,0.56131,4016.6,4016.5,2.13664274]
[1733602615479,0.56131,4016.6,4016.5,1.96253274]
[1733602615785,0.56131,4016.6,4016.5,2.13664274]
[1733602617490,0.56131,4016.6,4016.5,1.96253274]
[1733602617684,0.56131,4016.6,4016.5,2.13664274]
[1733602619786,3.48889106,4016.6,4016.5,1.96253274]
[1733602619980,0.56131,4016.6,4016.5,2.13664274]
[1733602620285,3.48889106,4016.6,4016.5,1.55283274]
[1733602620477,0.56131,4016.6,4016.5,1.55283274]
[1733602621080,0.17414,4015.9,4015.8,0.17413]
[1733602621278,0.17414,4015.9,4015.8,1.72696274]
[1733602621787,0.17414,4015.9,4015.8,1.55283274]
[1733602622189,0.58394,4015.9,4015.8,1.55283274]
[1733602622585,3.51512659,4015.9,4015.8,1.55283274]
[1733602623187,0.58394,4015.9,4015.8,1.55283274]
[1733602623382,0.17415,4015.7,4015.6,3.90618051]
[1733602623583,0.17415,4015.5,4015.4,3.90618051]
[1733602623788,0.17416,4015.4,4015.3,3.90618051]
[1733602624181,0.4007,4015.6,4015.2,3.90618051]
[1733602624492,0.17417,4015.1,4015.0,0.659]
[1733602624684,3.38197,4015.1,4015.0,0.659]
[1733602625284,3.2078,4015.1,4015.0,4.73936051]
[1733602625497,0.4007,4015.6,4015.4,0.17416]
[1733602625498,0.17416,4015.5,4015.4,0.17416]
[1733602625795,0.17416,4015.5,4015.4,1.06799274]
[1733602627091,0.17416,4015.5,4015.4,0.89383274]
[1733602627586,0.4007,4015.6,4015.1,4.79068887]
[1733602627792,3.38196,4015.3,4015.2,0.659]
[1733602630388,3.38196,4015.3,4015.1,0.89383274]
[1733602630389,0.17417,4015.2,4015.1,0.89383274]
[1733602631486,3.2078,4015.3,4015.2,0.17417]
[1733602631686,3.2078,4015.3,4015.2,4.44632613]
[1733602631887,0.17416,4015.4,4015.3,0.17416]
[1733602632092,0.17416,4015.4,4015.3,0.55706]
[1733602632501,0.17416,4015.5,4015.3,0.3829]
[1733602632691,0.4007,4015.6,4015.4,1.06799274]
[1733602632893,0.4007,4015.6,4015.5,0.83315]
[1733602633997,0.57485,4015.6,4015.5,0.659]
[1733602634199,0.4007,4015.6,4015.5,0.659]
[1733602634402,0.4007,4015.6,4015.5,0.83315]
[1733602634594,3.2078,4015.8,4015.7,0.17415]
[1733602634896,3.2078,4015.8,4015.7,1.06798274]
[1733602635092,0.7953,4016.3,4015.7,1.06798274]
[1733602635093,3.2078,4016.3,4015.7,3.89685613]
[1733602635294,0.4143,4016.2,4015.8,3.88958889]
[1733602635595,0.4143,4016.2,4016.1,0.17413]
[1733602635794,0.4143,4016.2,4016.1,0.83313]
[1733602636494,0.4143,4016.2,4016.1,4.72271889]
[1733602636694,0.4143,4016.2,4016.1,1.72696274]
[1733602637404,0.4143,4016.2,4016.1,0.659]
[1733602637593,0.4143,4016.2,4016.1,0.83313]
[1733602637792,0.4143,4016.2,4016.1,1.55283274]
[1733602637995,0.58842,4016.2,4016.1,1.55283274]
[1733602638396,0.58842,4016.2,4016.1,0.89383274]
[1733602638596,0.58842,4016.2,4016.1,1.55283274]
[1733602639200,0.58842,4016.2,4016.1,1.72696274]
[1733602640904,0.4143,4016.2,4016.1,1.72696274]
[1733602641098,0.58842,4016.2,4016.1,1.72696274]
[1733602641598,0.4143,4016.2,4016.1,1.72696274]
[1733602642102,0.58842,4016.2,4016.1,1.72696274]
[1733602644702,3.2078,4016.3,4016.2,0.17412]
[1733602645003,3.38192,4016.3,4016.2,0.17412]
[1733602645305,3.2078,4016.3,4016.2,0.17412]
[1733602645605,3.2078,4016.3,4016.2,0.49482]
[1733602652315,0.1741,4016.9,4016.7,0.1741]
[1733602652511,0.1741,4016.9,4016.8,2.53903274]
[1733602652704,0.1741,4016.9,4016.8,2.36493274]
[1733602652910,0.1741,4016.9,4016.8,2.53903274]
[1733602653316,0.1741,4016.9,4016.8,2.36493274]
[1733602655011,0.1741,4016.9,4016.8,1.55283274]
[1733602655716,3.10629821,4016.9,4016.8,1.55283274]
[1733602655914,0.1741,4016.9,4016.8,1.55283274]
[1733602662916,0.1741,4016.9,4016.8,0.659]
[1733602663118,0.17414,4016.0,4015.9,0.17414]
[1733602663418,0.17414,4016.0,4015.9,1.72697274]
[1733602664125,0.17414,4016.0,4015.9,1.55283274]
[1733602664319,0.17414,4016.0,4015.9,0.659]
[1733602664513,0.17414,4016.0,4015.9,1.55283274]
[1733602665313,0.56402,4016.4,4016.3,0.17412]
[1733602665519,0.3899,4016.4,4016.3,0.17412]
[1733602668224,3.2078,4017.0,4016.2,0.89383274]
[1733602668525,0.4101,4016.8,4016.7,0.1741]
[1733602668730,0.4101,4016.8,4016.7,0.8331]
[1733602669031,0.5842,4016.8,4016.7,0.8331]
[1733602669426,0.5842,4016.8,4016.7,0.659]
[1733602671234,3.51313702,4016.8,4016.7,0.659]
[1733602672236,0.5842,4016.8,4016.7,0.659]
[1733602672536,3.51404338,4016.8,4016.7,0.659]
[1733602672732,0.5842,4016.8,4016.7,0.659]
[1733602674337,4.49546434,4016.8,4016.7,0.659]
[1733602674835,0.17411,4016.6,4016.5,0.659]
[1733602675035,3.10508752,4016.6,4016.5,0.659]
[1733602675239,0.17411,4016.6,4016.5,0.659]
[1733602675743,2.93178907,4016.6,4016.3,0.659]
[1733602675934,3.38191,4016.4,4016.3,0.659]
[1733602676739,6.31369907,4016.4,4016.3,0.659]
[1733602677144,0.17412,4016.2,4016.1,0.89383274]
[1733602677334,0.17414,4015.9,4015.8,0.3932]
[1733602677534,0.17414,4015.9,4015.8,1.94603274]
[1733602678629,2.93178907,4016.1,4015.6,3.88958889]
[1733602678830,0.3979,4015.8,4015.5,3.88958889]
[1733602679033,0.3979,4015.8,4015.2,0.4075]
[1733602679034,3.76048907,4015.7,4015.3,0.659]
[1733602679233,3.38196,4015.4,4015.3,1.55283274]
[1733602680339,3.38196,4015.4,4015.3,1.72699274]
[1733602680540,3.38196,4015.4,4015.3,0.83316]
[1733602680738,3.38196,4015.4,4015.3,1.22716]
[1733602681131,3.2078,4015.4,4015.3,1.22716]
[1733602681434,3.38196,4015.4,4015.3,1.053]
[1733602682642,3.2078,4015.4,4015.3,1.053]
[1733602682845,3.2078,4015.4,4015.3,1.22716]
[1733602684043,3.2078,4015.4,4015.3,5.11674889]
[1733602684242,2.93178907,4016.0,4015.3,4.94258889]
[1733602684444,2.93178907,4016.2,4015.6,1.93427944]
[1733602684650,3.10591907,4016.2,4016.0,0.17413]
[1733602684837,3.10591907,4016.2,4016.1,0.3989]
[1733602684838,0.17412,4016.2,4016.1,0.3989]
[1733602685043,3.33688907,4016.4,4016.1,0.3989]
[1733602685237,0.17412,4016.3,4016.1,0.57303]
[1733602685637,3.33688907,4016.4,4016.1,0.3989]
[1733602685842,0.4051,4016.4,4016.3,0.17412]
[1733602687044,0.57921,4016.4,4016.3,0.17412]
[1733602687239,0.4051,4016.4,4016.3,0.17412]
[1733602688540,3.2078,4016.5,4016.1,1.1241]
[1733602688738,3.2078,4016.5,4016.4,0.17411]
[1733602691648,3.2078,4016.5,4016.2,4.06370889]
[1733602691840,0.17412,4016.4,4016.2,0.17412]
[1733602692043,0.17412,4016.4,4016.3,0.17412]
[1733602692444,3.38191,4016.5,4016.3,0.17412]
[1733602692651,0.17412,4016.4,4016.2,0.17412]
[1733602692850,3.2078,4016.5,4016.1,1.1241]
[1733602692851,0.17412,4016.3,4016.1,1.1241]
[1733602693050,0.17412,4016.4,4016.2,0.17412]
[1733602693346,3.2078,4016.5,4016.2,0.17412]
[1733602694151,0.17412,4016.4,4016.2,0.17412]
[1733602695250,2.93178907,4016.4,4015.8,0.659]
[1733602695455,0.17414,4015.9,4015.8,0.659]
[1733602695650,3.71328907,4016.3,4015.6,4.46393889]
[1733602695847,0.17415,4015.7,4015.6,4.46393889]
[1733602696150,0.17415,4015.7,4015.6,5.12293889]
[1733602697751,0.17415,4015.7,4015.6,5.54855939]
[1733602697952,0.55084,4015.8,4015.6,5.54855939]
[1733602698155,0.55084,4015.8,4015.7,3.8946557]
[1733602698743,0.55084,4015.8,4015.6,5.1284057]
[1733602700157,0.17415,4015.7,4015.6,5.1284057]
[1733602700553,0.55084,4015.8,4015.6,6.02097634]
[1733602701051,0.55084,4015.8,4015.7,3.8946557]
[1733602701255,0.55084,4015.8,4015.7,4.0688057]
[1733602701457,0.55084,4015.8,4015.7,3.8946557]
[1733602701952,0.55084,4015.8,4015.7,4.0688057]
[1733602702157,0.55084,4015.8,4015.7,3.8946557]
[1733602702755,0.17415,4015.7,4015.6,5.84682634]
[1733602703052,0.17415,4015.7,4015.6,1.95217064]
[1733602703552,0.17415,4015.7,4015.6,1.55157064]
[1733602704754,0.17415,4015.7,4015.6,0.89257064]
[1733602704953,0.4024,4015.7,4015.3,4.78722634]
[1733602705253,0.17415,4015.5,4015.4,0.659]
[1733602706560,0.3836,4015.6,4015.2,1.44714064]
[1733602706858,0.17416,4015.3,4015.2,1.44714064]
[1733602707057,0.17416,4015.3,4015.2,2.10614064]
[1733602707859,0.17416,4015.3,4015.2,1.93197064]
[1733602708263,0.17416,4015.3,4015.2,2.10614064]
[1733602708561,0.17416,4015.3,4015.2,1.93197064]
[1733602709056,0.17416,4015.3,4015.1,0.58917]
[1733602709057,3.2078,4015.5,4014.9,0.89257064]
[1733602709256,0.17417,4015.1,4015.0,0.659]
[1733602709452,0.3835,4015.2,4014.8,0.89257064]
[1733602709650,0.3835,4015.2,4014.9,0.659]
[1733602709852,0.3835,4015.2,4014.8,0.89257064]
[1733602710052,0.17418,4014.9,4014.8,0.89257064]
[1733602710259,0.17418,4014.9,4014.8,1.55157064]
[1733602710963,0.17418,4014.9,4014.8,1.72575064]
[1733602712558,0.17418,4014.9,4014.8,1.55157064]
[1733602712763,0.17418,4014.9,4014.8,5.44622634]
[1733602713157,0.17418,4014.9,4014.8,0.659]
[1733602713463,0.17418,4014.9,4014.8,1.55157064]
[1733602716260,0.17418,4014.9,4014.8,0.659]
[1733602717953,3.2078,4015.0,4014.9,0.17418]
[1733602718468,3.2078,4015.0,4014.9,0.49468]
[1733602720163,3.38198,4015.0,4014.9,0.49468]
[1733602720370,0.17418,4014.9,4014.8,0.659]
[1733602723262,0.17419,4014.7,4014.6,0.17419]
[1733602723566,0.17419,4014.7,4014.6,0.83319]
[1733602724164,0.17419,4014.7,4014.6,0.17419]
[1733602724471,0.17419,4014.7,4014.6,0.83319]
[1733602724770,0.17419,4014.7,4014.6,0.659]
[1733602726664,0.1742,4014.5,4014.4,4.6750557]
[1733602726868,0.1742,4014.5,4014.4,1.4394]
[1733602727357,0.1742,4014.5,4014.4,0.7804]
[1733602727763,0.1742,4014.5,4014.4,1.4394]
[1733602728269,0.1742,4014.5,4014.4,1.0589]
[1733602729064,0.17421,4014.2,4014.1,3.2078]
[1733602729267,0.17421,4014.2,4014.1,0.659]
[1733602729671,3.5942,4014.4,4014.1,0.659]
[1733602729865,0.17421,4014.3,4014.2,0.17421]
[1733602730269,3.2078,4014.4,4014.3,0.17421]
[1733602730573,0.1742,4014.5,4014.4,0.1742]
[1733602730968,0.4096,4014.6,4014.2,0.3205]
[1733602731273,0.4096,4014.6,4014.4,0.1742]
[1733602731274,0.1742,4014.5,4014.4,0.1742]
[1733602731477,0.5838,4014.6,4014.5,0.1742]
[1733602731772,3.2078,4015.0,4014.9,0.17418]
[1733602731973,0.17418,4014.9,4014.8,0.659]
[1733602732275,0.17418,4014.9,4014.8,0.83318]
[1733602732466,0.17418,4014.9,4014.8,0.659]
[1733602734067,3.608,4015.0,4014.6,0.55149]
[1733602734068,0.17419,4014.7,4014.6,0.55149]
[1733602734267,0.17419,4014.7,4014.6,1.21049]
[1733602735068,0.17419,4014.8,4014.7,0.17419]
[1733602736371,0.17418,4014.8,4014.7,0.17419]
[1733602738167,0.17419,4014.7,4014.6,1.21049]
[1733602738473,3.608,4015.0,4014.9,0.17418]
[1733602738771,3.2078,4015.0,4014.9,0.17418]
[1733602739878,3.38198,4015.0,4014.9,0.17418]
[1733602740076,3.2078,4015.0,4014.9,0.17418]
[1733602740271,3.2078,4015.0,4014.9,0.49478]
[1733602740474,3.2078,4015.0,4014.9,4.3894357]
[1733602741770,3.2078,4015.0,4014.9,4.7922357]
[1733602742868,3.2078,4015.0,4014.9,0.89758]
[1733602743878,3.2078,4015.0,4014.9,0.57698]
[1733602744569,3.5981,4015.0,4014.9,0.57698]
[1733602744967,3.77228,4015.0,4014.9,0.57698]
[1733602745274,3.5981,4015.0,4014.9,0.57698]
[1733602745778,3.2078,4015.0,4014.9,0.57698]
[1733602746180,3.2078,4015.0,4014.7,3.8946557]
[1733602746378,0.17418,4014.9,4014.8,0.659]
[1733602746578,0.17418,4014.9,4014.8,0.83318]
[1733602747080,0.17418,4014.9,4014.8,0.659]
[1733602747776,3.2078,4015.0,4014.8,0.83318]
[1733602747977,3.2078,4015.0,4014.9,0.17418]
[1733602748186,3.2078,4015.0,4014.9,0.57388]
[1733602748369,3.2078,4015.0,4014.9,4.4685357]
[1733602748673,3.2078,4015.0,4014.9,4.46975725]
[1733602750382,3.2078,4015.0,4014.9,4.89202514]
[1733602750975,3.2078,4015.0,4014.9,12.72854912]
[1733602751171,3.2078,4015.0,4014.9,21.3639529]
[1733602751973,0.3903,4015.3,4015.2,0.17417]
[1733602752175,3.2078,4015.5,4015.4,0.17416]
[1733602752377,2.93178907,4016.0,4015.4,5.86939273]
[1733602752577,3.2078,4016.1,4015.8,0.89257064]
[1733602752777,3.38193,4016.1,4016.0,3.89641823]
[1733602753075,3.38193,4016.1,4016.0,4.55541823]
[1733602753475,3.38193,4016.1,4016.0,0.659]
[1733602754075,3.2078,4016.1,4015.8,3.89641823]
[1733602754385,3.2078,4016.1,4015.7,0.659]
[1733602754386,0.17414,4015.8,4015.7,4.55541823]
[1733602754882,0.17414,4015.8,4015.7,0.659]
[1733602756681,0.8161,4016.0,4015.7,4.55541823]
[1733602756981,3.38193,4016.1,4015.8,3.89641823]
[1733602757172,3.38193,4016.1,4016.0,0.17413]
[1733602757379,3.2078,4016.1,4016.0,0.17413]
[1733602758283,7.11906434,4016.1,4016.0,0.17413]
[1733602758580,3.2078,4016.1,4016.0,0.17413]
[1733602759988,3.38193,4016.1,4015.7,1.4556]
[1733602760186,3.2078,4016.1,4015.7,1.4556]
[1733602760381,0.17414,4015.9,4015.7,1.62974]
[1733602760686,6.31426022,4016.1,4015.9,0.17414]
[1733602761385,3.2078,4016.1,4015.9,0.17414]
[1733602761784,3.2078,4016.1,4015.7,1.4556]
[1733602762291,3.38193,4016.1,4015.9,0.17413]
[1733602763186,3.2078,4016.1,4016.0,0.17413]
[1733602763684,3.38193,4016.1,4015.7,1.4556]
[1733602763889,3.38193,4016.1,4016.0,0.17413]
[1733602764479,3.2078,4016.1,4016.0,0.17413]
[1733602764881,6.14013022,4016.6,4016.5,0.17411]
[1733602765084,3.612,4016.6,4016.5,0.83311]
[1733602765585,3.78611,4016.6,4016.5,0.659]
[1733602765781,3.78611,4016.6,4016.5,0.83311]
[1733602766687,3.612,4016.6,4016.5,0.83311]
[1733602766887,3.78611,4016.6,4016.5,0.659]
[1733602767287,3.612,4016.6,4016.5,0.83311]
[1733602767692,3.78611,4016.6,4016.5,0.83311]
[1733602769789,3.78611,4016.6,4016.5,0.659]
[1733602769987,3.612,4016.6,4016.5,0.659]
[1733602770186,3.612,4016.6,4016.5,0.83311]
[1733602770587,3.2078,4016.6,4016.5,0.83311]
[1733602778598,3.2078,4016.6,4016.5,1.72524886]
[1733602780003,3.2078,4017.1,4017.0,0.17409]
[1733602780603,3.2078,4018.1,4017.0,3.2078]
[1733602780803,0.95756,4017.8,4017.6,0.17406]
[1733602781102,0.7835,4017.8,4017.7,0.658]
[1733602781401,0.7835,4017.8,4017.4,0.658]
[1733602781603,1.06619886,4017.6,4017.5,0.658]
[1733602782703,4.27399886,4017.6,4017.5,0.658]
[1733602787801,4.27399886,4017.6,4017.5,0.0336]
[1733602788002,0.17408,4017.2,4016.7,0.1741]
[1733602788312,0.17409,4016.9,4016.8,0.658]
[1733602788608,0.55969,4016.9,4016.8,0.658]
[1733602792712,0.17412,4016.3,4016.2,0.17412]
[1733602792910,0.43525,4016.8,4016.1,0.57723]
[1733602792911,0.17412,4016.2,4016.1,0.57723]
[1733602793216,0.7887,4016.2,4016.0,0.89213886]
[1733602793511,0.96282,4016.2,4016.1,0.658]
[1733602794808,0.7887,4016.2,4015.6,0.8042]
[1733602795015,0.7887,4016.2,4015.7,0.658]
[1733602795016,3.2078,4016.1,4015.7,0.658]
[1733602795210,3.2078,4016.1,4015.4,0.658]
[1733602795211,0.60947,4016.0,4015.4,0.658]
[1733602795520,0.17415,4015.5,4015.4,0.658]
[1733602796212,0.17416,4015.3,4015.2,3.8658]
[1733602797015,0.57416,4015.3,4015.2,3.8658]
[1733602798215,0.57416,4015.3,4015.2,0.658]
[1733602801409,0.4,4015.3,4014.8,0.97298]
[1733602801614,0.17418,4014.9,4014.8,0.97298]
[1733602801819,0.17418,4014.9,4014.8,1.63098]
[1733602803216,0.17418,4014.9,4014.8,1.4568]
[1733602804323,0.17418,4014.9,4014.8,1.63098]
[1733602806421,0.17418,4014.9,4014.8,0.97298]
[1733602806618,0.17418,4014.9,4014.8,1.63198]
[1733602806921,3.6078,4015.3,4014.8,1.4578]
[1733602807121,3.6078,4015.3,4014.9,0.659]
[1733602807426,3.78196,4015.3,4015.1,0.17417]
[1733602807623,0.17417,4015.2,4015.0,0.83317]
[1733602808819,3.38196,4015.3,4015.2,0.17417]
[1733602809025,3.2078,4015.3,4015.2,0.17417]
[1733602810426,3.6097481,4016.6,4015.8,0.17414]
[1733602810427,3.2078,4015.9,4015.8,0.17414]
[1733602810723,0.17413,4016.1,4015.8,0.659]
[1733602810927,0.17413,4016.1,4016.0,0.17413]
[1733602811328,0.17413,4016.1,4015.9,0.97303]
[1733602812624,3.2078,4016.4,4016.0,0.17413]
[1733602812625,0.17413,4016.2,4016.0,0.17413]
[1733602814128,3.2078,4016.4,4015.9,0.7989]
[1733602814431,0.17412,4016.2,4016.0,0.17413]
[1733602816132,3.2078,4016.4,4015.9,0.7989]